Cogmind - Beta 11.1 @@@ ROGUE MODE // 2022.07.02 @ 11:37:01 Player: raddakar Result: Destroyed by S-27 Virus with Autogun Performance ------------- Evolutions (6) 3000 Regions Visited (16) 3200 Robots Destroyed (209) 1045 Value Destroyed (7562) 7562 Prototype IDs (44) 880 Alien Tech Used (0) 0 Bonus (3501) 3501 TOTAL SCORE: 19188 Bonus ------- High Alert Combat Kills 450 Follower Combat Kills 1639 Entered Garrisons 400 Used RIF Installer 500 Network Hubs Disabled 200 Aligned with FarCom 300 A7 Reached Mainframe 300 Friendly Fire -288 Cogmind --------- Core Integrity 0/1150 Matter 256/300 Energy 129/450 System Corruption 6% Temperature Cool (0) Movement Core (400) Ox7 Location -4/Garrison Parts ------- > --- POWER (2) -------- (None) > --- PROPULSION (4) --- (None) > --- UTILITY (9) ------ Energy Well Improved Target Analyzer Improved Target Analyzer > --- WEAPON (4) ------- YOLO Cannon > --- INVENTORY (5) ---- Particle Reactor Improved Matter Compressor (300) Peak State ------------ > --- POWER ------------ Particle Reactor > --- PROPULSION ------- Centrium Heavy Treads Centrium Heavy Treads > --- UTILITY ---------- Advanced Cooling System High-capacity Storage Unit Huge Storage Unit Improved Targeting Computer Improved Target Analyzer Improved Kinecellerator Centrium Medium Armor Plating Graphene Brace Advanced Hacking Suite > --- WEAPON ----------- Railgun Advanced KE Penetrator Advanced KE Penetrator > --- INVENTORY -------- Particle Reactor Particle Reactor Medium Treads Medium Treads Armored Medium Treads Improved Coolant Injector Energy Well Improved Matter Compressor Energy Filter Advanced Particle Charger Improved Kinecellerator Centrium Medium Armor Plating Centrium Medium Armor Plating YOLO Cannon Ripper [Rating: 120] Favorites ----------- Power Micro Nuclear Core Engine Light Ion Engine Power Core Micro Nuclear Core Reactor Particle Reactor Propulsion Armored Treads Treads Armored Treads Leg Armored Leg Wheel Armored Wheel Utility High-capacity Storage Unit Device Microactuators Storage High-capacity Storage Unit Processor Improved Target Analyzer Hackware Advanced Hacking Suite Protection Hardened Heavy Armor Plating Weapon Gauss Rifle Energy Gun Wave Gun Energy Cannon YOLO Cannon Ballistic Gun Gauss Rifle Ballistic Cannon Bore Cannon Launcher Grenade Launcher Special Weapon Field Lobotomy Kit Impact Weapon Power Maul Slashing Weapon Ripper Build | -11 -10 -10 -10 -9 -8 -8 -8 -7 -6 -5 -5 -5 -5 -5 -4 -4 ------- Run | Scr Mat Min Exi Min Mat Gar Mat Fac Fac Fac Ext Cet Arc Hub Fac Gar Slots Evolved 12 | . . . . . 4 . . 2 2 2 . . . . 2 . Power 1 | . . . . . . . . . . . . . . . 1 . Propulsion 2 | . . . . . 2 . . . . . . . . . . . Utility 7 | . . . . . 2 . . 2 1 1 . . . . 1 . Weapon 2 | . . . . . . . . . 1 1 . . . . . . Parts Attached 255 | . 14 4 4 . 19 17 16 23 18 55 37 14 10 6 6 12 Power 17 | . 1 2 . . 1 1 1 . 1 4 2 . 2 . 1 1 Engine 7 | . 1 2 . . 1 1 . . 1 1 . . . . . . Core 6 | . . . . . . . 1 . . 3 2 . . . . . Reactor 4 | . . . . . . . . . . . . . 2 . 1 1 Propulsion 62 | . 5 1 4 . 9 3 6 6 1 10 8 3 2 1 2 1 Treads 32 | . 3 1 2 . 7 . 3 2 . 5 3 1 1 1 2 1 Leg 19 | . . . . . 2 3 1 . . 5 5 2 1 . . . Wheel 11 | . 2 . 2 . . . 2 4 1 . . . . . . . Hover . | . . . . . . . . . . . . . . . . . Flight . | . . . . . . . . . . . . . . . . . Utility 79 | . 3 . . . 6 5 7 10 6 18 10 3 1 1 2 7 Device 33 | . 1 . . . . 1 2 6 2 9 7 2 . 1 1 1 Storage 10 | . 1 . . . . 2 . 1 1 1 . . . . 1 3 Processor 13 | . . . . . . 1 2 1 2 5 . . . . . 2 Hackware 2 | . . . . . 1 . . . . . 1 . . . . . Protection 21 | . 1 . . . 5 1 3 2 1 3 2 1 1 . . 1 Artifact . | . . . . . . . . . . . . . . . . . Weapon 97 | . 5 1 . . 3 8 2 7 10 23 17 8 5 4 1 3 Energy Gun 2 | . . . . . . . . . 1 . 1 . . . . . Energy Cannon 6 | . . . . . . . . . . . 2 1 . . . 3 Ballistic Gun 55 | . 4 1 . . 3 4 . 3 7 15 6 4 5 3 . . Ballistic Cannon 3 | . . . . . . . . . . . 3 . . . . . Launcher 8 | . . . . . . 3 . . 1 1 3 . . . . . Special Weapon 3 | . . . . . . 1 . . . 2 . . . . . . Impact Weapon 13 | . 1 . . . . . 2 4 1 5 . . . . . . Slashing Weapon 7 | . . . . . . . . . . . 2 3 . 1 1 . Piercing Weapon . | . . . . . . . . . . . . . . . . . Special Melee Weapon . | . . . . . . . . . . . . . . . . . Unidentified Prototypes 13 | . . . . . . . . 1 3 5 . 2 1 1 . . Corrupted Parts 5 | . . . . . . . . 1 . . . 1 . 3 . . System Corruption 41 | . . . . . . . . 11 . . . 11 . 19 . . Parts Lost 53 | . 1 . . . 1 2 3 . . 14 11 . . 4 9 8 Power 5 | . . . . . . . 1 . . 1 1 . . . 1 1 Propulsion 14 | . 1 . . . . . 1 . . 5 2 . . . 1 4 Utility 16 | . . . . . 1 1 1 . . 4 1 . . 1 4 3 Weapon 18 | . . . . . . 1 . . . 4 7 . . 3 3 . Highest Loss Streak 12 | . 1 . . . 1 2 2 . . 12 8 . . 4 9 3 To Critical Strikes 1 | . . . . . . . . . . 1 . . . . . . Average Slot Usage (%) 91 | . 95 100 100 100 96 89 97 85 91 94 94 94 93 89 70 46 Engine 4 | . 14 14 14 14 9 9 2 . 3 2 1 . . . . . Core 2 | . . . . . . . 5 7 3 2 3 5 . . . . Treads 12 | . 10 27 . 28 28 23 19 14 6 6 4 9 15 16 10 10 Leg 6 | . 7 . . . 3 12 6 . . 7 17 7 1 . . . Wheel 5 | . 9 . 27 . . . 9 8 20 7 . . . . . . Device 12 | . 6 14 14 14 7 7 11 14 16 12 12 10 11 14 14 8 Storage 7 | . 14 14 14 14 9 9 9 7 6 5 5 5 5 5 5 4 Processor 9 | . . . . . . . 8 8 9 19 17 17 17 13 9 7 Hackware 1 | . . . . . 1 1 . . . . 4 5 5 5 5 5 Protection 4 | . 3 . . . 17 7 6 7 6 2 3 5 5 5 5 1 Ballistic Gun 13 | . 23 28 28 28 18 17 7 . 4 20 10 9 22 18 12 . Impact Weapon 3 | . 2 . . . . . 10 14 12 1 . . . . . . Slashing Weapon 1 | . . . . . . . . . . . 2 11 . 1 . 4 Naked Turns . | . . . . . . . . . . . . . . . . . Heaviest Build 131 | 13 51 48 46 46 58 61 58 76 87 96 93 88 96 96 131 114 Greatest Support 160 | 20 22 46 46 46 66 80 44 36 36 52 67 107 135 160 160 135 Greatest Overweight (x) 5 | . 5 2 1 . . 2 5 5 2 3 1 1 . . . 2 Average Overweight (x) 1 | . 1 . . . . . 2 2 2 1 1 . . . . . Largest Inventory Capacity 25 | . 20 20 20 20 20 20 20 20 20 20 20 20 20 20 25 25 Average Capacity 19 | . 14 20 20 20 20 20 20 20 20 20 20 20 20 20 23 20 Most Carried 24 | . 20 20 20 20 20 20 20 20 20 20 20 20 20 20 17 24 Average Carried 18 | . 12 19 19 20 19 19 19 19 19 19 19 19 19 19 16 15 Final Capacity 25 | 8 20 20 20 20 20 20 20 20 20 20 20 20 20 20 25 5 Final Carried 20 | 6 20 20 20 20 20 19 20 19 20 20 20 20 20 16 14 2 Class Distribution -------------------- 45% | Scavenger-Mutant 33% | Mutant 15% | Scavenger-Gunner Dominant Class ---------------- Mutant | -10/Materials Mutant | -10/Mines Mutant | -10/Exiles Mutant | -9/Mines Scavenger-Mutant | -8/Materials Scavenger-Mutant | -8/Garrison Mutant | -8/Materials Mutant | -7/Factory Scavenger-Mutant | -6/Factory Scavenger-Gunner | -5/Factory Scavenger-Mutant | -5/Extension Scavenger-Mutant | -5/Cetus Scavenger-Gunner | -5/Archives Scavenger-Mutant | -5/Hub_04(d) Scavenger-Mutant | -4/Factory Scavenger-Mutant | -4/Garrison Resources | -11 -10 -10 -10 -9 -8 -8 -8 -7 -6 -5 -5 -5 -5 -5 -4 -4 ----------- Run | Scr Mat Min Exi Min Mat Gar Mat Fac Fac Fac Ext Cet Arc Hub Fac Gar Matter Collected 6452 | 175 304 148 72 . 367 380 190 321 216 1979 1274 308 319 133 135 131 Remotely . | . . . . . . . . . . . . . . . . . Salvage Created 10022 | . 634 . . . 421 380 557 1500 874 2950 973 180 384 398 362 409 Parts 423 | . 24 . . . 30 27 19 26 14 141 63 8 19 22 12 18 Haulers Intercepted 9 | . 2 . . . . . 3 1 1 1 . . . 1 . . Recyclers Shooed 21 | . 2 . . . 1 . . 6 3 7 2 . . . . . Parts Field Recycled . | . . . . . . . . . . . . . . . . . Retrieved Matter . | . . . . . . . . . . . . . . . . . Parts Self-Destructed . | . . . . . . . . . . . . . . . . . Prevented . | . . . . . . . . . . . . . . . . . Kills | -11 -10 -10 -10 -9 -8 -8 -8 -7 -6 -5 -5 -5 -5 -5 -4 -4 ------- Run | Scr Mat Min Exi Min Mat Gar Mat Fac Fac Fac Ext Cet Arc Hub Fac Gar Combat Hostiles Destroyed 151 | . 10 . . . 9 19 11 15 7 32 19 3 4 3 6 13 Melee 24 | . 2 . . . . . 5 7 4 1 1 . . . 1 3 Guns 74 | . 6 . . . 9 4 . 2 . 31 8 3 4 2 5 . Cannons 5 | . . . . . . . . . . . 3 . . . . 2 AOE 31 | . . . . . . 15 . . . . 7 . . 1 . 8 Classes Destroyed 14 | . 4 1 . . 2 . . 2 1 2 2 . . . . . Worker 15 | . . 1 . . . . . 6 . 3 4 . . 1 . . Builder 5 | . . . . . . . . . . 1 2 . . 2 . . Tunneler 1 | . . . . . . . . . . . 1 . . . . . Hauler 9 | . 2 . . . . . 3 1 1 1 . . . 1 . . Recycler 28 | . 5 . . . 1 . 1 10 3 7 1 . . . . . Swarmer 46 | . 9 . . . 3 11 4 . . . 8 . . . 3 8 Grunt 52 | . 1 . . . 2 7 5 7 4 11 6 2 . 1 3 3 Duelist 1 | . . . . . . . . . 1 . . . . . . . Sentry 16 | . . . . . 3 1 2 . 1 1 3 . 4 1 . . Specialist 3 | . . . . . . . . . . 3 . . . . . . Hunter 9 | . . . . . 1 . . 1 . 7 . . . . . . Programmer 19 | . . . . . . . . 6 1 9 . 1 . . . 2 Heavy 3 | . . . . . . . . 1 . 1 . . . 1 . . Behemoth 2 | . . . . . . . . . . . 2 . . . . . Best Kill Streak 10 | . 5 1 . . 6 7 5 8 6 8 7 2 2 6 5 10 Combat Bots Only 10 | . 3 . . . 5 7 5 3 3 8 5 2 2 2 5 10 Max Kills in Single Turn 5 | . 1 1 . . 2 4 1 1 1 2 3 1 1 5 1 5 Gunslinging 1 | . . . . . 1 . . . . 1 . . . . . . Exploded 4 | . . . . . . 4 . . . . 2 . . 1 . 4 Melee 1 | . 1 . . . . . 1 1 1 1 1 . . . 1 1 Uniques/NPCs Destroyed . | . . . . . . . . . . . . . . . . . Combat | -11 -10 -10 -10 -9 -8 -8 -8 -7 -6 -5 -5 -5 -5 -5 -4 -4 -------- Run | Scr Mat Min Exi Min Mat Gar Mat Fac Fac Fac Ext Cet Arc Hub Fac Gar Damage Taken 18891 | . 616 . . . 661 1029 668 1266 327 4901 2543 669 510 1458 2155 2088 Core 2504 | . 129 . . . 36 62 47 140 . 376 267 101 . 186 136 1024 Absorbed by Shields 256 | . . . . . . . . . . . 55 117 . . . 84 Redirected to Shielding 28 | . 19 . . . 9 . . . . . . . . . . . Regen/Repaired (Parts) 724 | . . . . . . . . . 314 410 . . . . . . Core Remaining (%) 68 | 100 . . . 48 . . 73 80 100 . . . . 7 . . Volleys Fired 341 | . 41 1 . . 31 32 5 9 2 91 53 31 14 10 16 5 Largest 4 | . 2 2 . . 2 2 2 2 2 4 4 4 4 4 2 1 Hottest 140 | . 90 40 . . 40 51 46 53 53 121 112 102 97 140 70 100 Shots Fired 806 | . 81 2 . . 62 43 10 18 5 306 116 43 56 32 27 5 Gun 750 | . 81 2 . . 62 27 10 18 5 303 85 42 56 32 27 . Cannon 28 | . . . . . . . . . . . 22 1 . . . 5 Launcher 23 | . . . . . . 14 . . . . 9 . . . . . Special 5 | . . . . . . 2 . . . 3 . . . . . . Kinetic 767 | . 79 2 . . 62 27 10 18 5 303 104 42 56 32 27 . Thermal 11 | . 2 . . . . . . . . . 3 1 . . . 5 Explosive 23 | . . . . . . 14 . . . . 9 . . . . . Electromagnetic . | . . . . . . . . . . . . . . . . . Robot Hit Streak 17 | . 7 8 . . 14 12 7 10 2 14 17 10 10 13 7 1 Robot Miss Streak 5 | . 3 . . . 2 2 1 2 3 3 5 1 2 2 3 2 Penetration Max 2 | . . . . . . . . . . 2 1 1 . 1 1 . Secondary Targets 16 | . 1 . . . 1 2 . 1 . 7 1 1 . . 2 . Max Gunslinging Chain 1 | . 1 . . . 1 1 . 1 . 1 1 1 . . 1 . Shots Hit Robots 691 | . 65 2 . . 44 30 31 70 20 217 80 31 39 26 21 15 Core Hits 301 | . 19 1 . . 20 35 5 13 4 97 41 10 19 10 10 17 Critical Kills 23 | . . . . . 2 . 1 3 2 6 6 . 1 . 2 . Critical Parts Destroyed 49 | . 2 . . . . . 8 14 7 7 9 . . 1 1 . Critical Strikes 76 | . 2 . . . 2 . 9 17 9 14 16 . 1 1 3 2 Destroy 36 | . . . . . 2 . . . . 13 16 . 1 1 3 . Smash 38 | . 2 . . . . . 9 17 9 1 . . . . . . Sever 2 | . . . . . . . . . . . . . . . . 2 Melee Attacks 188 | . 20 . . . . . 36 72 22 3 5 2 . 4 3 21 Impact 153 | . 20 . . . . . 36 72 22 3 . . . . . . Slashing 35 | . . . . . . . . . . . 5 2 . 4 3 21 Piercing . | . . . . . . . . . . . . . . . . . Sneak Attacks 31 | . 4 . . . . . 3 18 3 2 1 . . . . . Combat Hostiles . | . . . . . . . . . . . . . . . . . Follow-up Attacks 8 | . . . . . . . 3 5 . . . . . . . . Damage Inflicted 24314 | . 1006 35 . . 518 1528 1367 3952 1068 5925 3642 806 761 1498 739 1469 Guns 12250 | . 529 22 . . 518 309 150 325 27 5722 1535 806 761 884 662 . Cannons 607 | . . . . . . . . . . . 389 . . . . 218 Explosions 4147 | . . . . . . 1216 . . . . 1533 . . 614 . 784 Melee 7269 | . 477 . . . . . 1217 3617 1041 198 180 . . . 72 467 Ramming 41 | . . 13 . . . 3 . 10 . 5 5 . . . 5 . Kinetic 12359 | . 506 22 . . 518 309 150 325 27 5722 1667 806 761 884 662 . Thermal 1477 | . 23 . . . . . . . . . 452 . . . . 1002 Explosive 2554 | . . . . . . 1216 . . . . 1338 . . . . . Electromagnetic 614 | . . . . . . . . . . . . . . 614 . . Impact 6550 | . 477 . . . . . 1217 3617 1041 198 . . . . . . Slashing 719 | . . . . . . . . . . . 180 . . . 72 467 Piercing . | . . . . . . . . . . . . . . . . . Highest Corruption 29 | . . . . . . . . 13 11 5 . 10 1 29 . 6 Average Corruption 3 | . . . . . . . . 1 6 1 . 5 1 5 . 5 Corruption Purged 19 | . . . . . . . . . . 9 . 10 . . . . Corruption Blocked . | . . . . . . . . . . . . . . . . . Effects 34 | . . . . . . . . 9 15 . . 2 2 1 . 5 Message Errors 8 | . . . . . . . . 1 6 . . . . . . 1 Matter Fused 9 | . . . . . . . . 4 2 . . . 1 1 . 1 Heat Flow Errors 7 | . . . . . . . . 2 3 . . 1 . . . 1 Energy Discharges 3 | . . . . . . . . . 1 . . . 1 . . 1 Data Loss (minor) 5 | . . . . . . . . 2 2 . . 1 . . . . Data Loss (major) 1 | . . . . . . . . . . . . . . . . 1 Misfires 1 | . . . . . . . . . 1 . . . . . . . Overload Shots . | . . . . . . . . . . . . . . . . . Overflow Damage 3357 | . 220 . . . . 5 531 1807 472 138 106 . . 57 . 21 Projectiles 63 | . 52 . . . . . . 11 . . . . . . . . Explosions 189 | . . . . . . 5 . . . . 106 . . 57 . 21 Melee 3105 | . 168 . . . . . 531 1796 472 138 . . . . . . Knockbacks 40 | . 5 . . . . . 5 20 6 3 1 . . . . . Impact 33 | . 4 . . . . . 4 17 6 2 . . . . . . Kinetic 1 | . . . . . . . . . . . 1 . . . . . Secondary 6 | . 1 . . . . . 1 3 . 1 . . . . . . Self-Inflicted Damage 234 | . . . . . . 130 . 5 . . . . . 99 . . Shots 7 | . . . . . . 6 . . . . . . . 1 . . Rammed 5 | . . 1 . . . 2 . 1 . . . . . . 1 . Targets Rammed 10 | . . 2 . . . 2 . 1 . 2 2 . . . 1 . Kicked 3 | . . . . . . . . . . 1 2 . . . . . Crushed 2 | . . 1 . . . . . . . 1 . . . . . . Highest Temperature 452 | . 30 . . . 6 117 . 268 218 452 51 188 . . . 93 Average Temperature 86 | . 9 . . . 4 68 . 88 91 113 19 81 . . . 38 Received Heat Transfer 2706 | . 54 . . . 153 441 99 207 69 831 379 89 27 108 183 66 Effects 6 | . . . . . . . . 2 . 4 . . . . . . Shutdowns 1 | . . . . . . . . . . 1 . . . . . . Energy Bleed 2 | . . . . . . . . . . 2 . . . . . . Interference 2 | . . . . . . . . 2 . . . . . . . . Short Circuit 1 | . . . . . . . . . . 1 . . . . . . Siege Activations . | . . . . . . . . . . . . . . . . . Robots Corrupted 1 | . . . . . . . . . . . . . . 1 . . Combat Hostiles . | . . . . . . . . . . . . . . . . . Parts Fried 51 | . 5 . . . . . 8 25 6 4 . . . 3 . . Impact Corruptions 103 | . 9 . . . . . 18 59 13 4 . . . . . . Robots Melted . | . . . . . . . . . . . . . . . . . Combat Hostiles . | . . . . . . . . . . . . . . . . . Parts Melted 3 | . . . . . 1 . . . . . . . . . . 2 Heat Transferred 1343 | . 62 . . . . . . . . . 321 . . . . 960 Parts Sabotaged 1 | . . . . . . . . . . 1 . . . . . . Parts Stolen . | . . . . . . . . . . . . . . . . . Parts Stripped . | . . . . . . . . . . . . . . . . . Power Chain Reactions . | . . . . . . . . . . . . . . . . . Missiles Intercepted . | . . . . . . . . . . . . . . . . . Alert | -11 -10 -10 -10 -9 -8 -8 -8 -7 -6 -5 -5 -5 -5 -5 -4 -4 ------- Run | Scr Mat Min Exi Min Mat Gar Mat Fac Fac Fac Ext Cet Arc Hub Fac Gar Peak Influence 759 | . 235 66 . . 258 759 369 397 211 635 611 391 270 481 442 698 Initial 369 | . . 51 . . . 39 369 100 126 21 269 72 133 94 230 274 Average 212 | . 126 43 . . 105 449 211 215 79 282 204 207 240 180 329 371 Maximum Alert Level 3 | . 1 . . . 1 3 1 1 1 2 2 1 1 2 2 2 Low Security (%) 58 | . 85 100 . 100 83 31 44 47 88 51 57 67 23 82 . . Level 1 25 | . 14 . . . 16 7 55 52 11 7 28 32 76 . 65 58 Level 2 15 | . . . . . . 52 . . . 40 14 . . 17 34 41 Level 3 . | . . . . . . 8 . . . . . . . . . . Level 4 . | . . . . . . . . . . . . . . . . . Level 5 . | . . . . . . . . . . . . . . . . . High Security . | . . . . . . . . . . . . . . . . . Max Security . | . . . . . . . . . . . . . . . . . Squads Dispatched 25 | . 2 . . . 3 . 3 5 2 6 . . . 3 1 . Investigation 2 | . 1 . . . . . . 1 . . . . . . . . Extermination 5 | . . . . . . . . 3 1 1 . . . . . . Reinforcement 13 | . 1 . . . . . 2 1 1 5 . . . 3 . . Assault . | . . . . . . . . . . . . . . . . . Garrison 5 | . . . . . 3 . 1 . . . . . . . 1 . Intercept . | . . . . . . . . . . . . . . . . . Searches Triggered . | . . . . . . . . . . . . . . . . . Construction Impeded 1 | . . . . . . . . . . 1 . . . . . . Haulers Reinforced 4 | . . . . . . . . . 1 2 . . . 1 . . Active Scanning Responses . | . . . . . . . . . . . . . . . . . Cargo Convoy Interrupts 1 | . . . . . . . . . . 1 . . . . . . Stealth | -11 -10 -10 -10 -9 -8 -8 -8 -7 -6 -5 -5 -5 -5 -5 -4 -4 --------- Run | Scr Mat Min Exi Min Mat Gar Mat Fac Fac Fac Ext Cet Arc Hub Fac Gar Distress Signals 17 | . . . . . . . 4 . 1 5 1 1 . . 3 2 Communications Jammed . | . . . . . . . . . . . . . . . . . Distress Signals . | . . . . . . . . . . . . . . . . . Times Spotted 298 | . 18 4 . . 10 26 25 20 11 63 52 13 7 6 16 27 Peak Tracking Total 16 | . 5 2 . . 3 7 6 4 3 10 6 5 2 3 9 16 Tactical Retreats 23 | . 1 . . . . . 1 3 1 4 7 1 . . . 5 Traps | -11 -10 -10 -10 -9 -8 -8 -8 -7 -6 -5 -5 -5 -5 -5 -4 -4 ------- Run | Scr Mat Min Exi Min Mat Gar Mat Fac Fac Fac Ext Cet Arc Hub Fac Gar Traps Triggered 7 | . 1 . . . . . . . 4 . 1 . . . . 1 Indirectly . | . . . . . . . . . . . . . . . . . Trap Hack Attempts . | . . . . . . . . . . . . . . . . . Triggered . | . . . . . . . . . . . . . . . . . Disarmed 7 | . . . . . . . . 7 . . . . . . . . Reprogrammed . | . . . . . . . . . . . . . . . . . Reused . | . . . . . . . . . . . . . . . . . Traps Extracted . | . . . . . . . . . . . . . . . . . Installed . | . . . . . . . . . . . . . . . . . Triggered 2 | . . . . . . . . 1 . 1 . . . . . . Machines | -11 -10 -10 -10 -9 -8 -8 -8 -7 -6 -5 -5 -5 -5 -5 -4 -4 ---------- Run | Scr Mat Min Exi Min Mat Gar Mat Fac Fac Fac Ext Cet Arc Hub Fac Gar Machines Disabled 24 | . . . . . 1 1 1 . . . 7 4 2 3 5 . Max in Single Turn 2 | . . . . . 1 1 1 . . . 1 2 1 2 2 . Garrison Access 5 | . . . . . . . 1 1 1 2 . . . . . . Garrison Relay 1 | . . . . . . 1 . . . . . . . . . . Network Hub 1 | . . . . . . . . . . . . . . 1 . . Energy Cycler 2 | . . . . . . . . . . . 2 . . . . . Machines Sabotaged . | . . . . . . . . . . . . . . . . . Garrisons Compromised 1 | . . . . . . . . . . 1 . . . . . . Overloaded Fab Kills . | . . . . . . . . . . . . . . . . . Hacking | -11 -10 -10 -10 -9 -8 -8 -8 -7 -6 -5 -5 -5 -5 -5 -4 -4 --------- Run | Scr Mat Min Exi Min Mat Gar Mat Fac Fac Fac Ext Cet Arc Hub Fac Gar Machines Accessed 45 | . 5 . 1 . 2 . 6 5 8 5 10 1 . 1 1 . Terminals 27 | . 4 . . . 1 . 4 1 4 1 10 1 . 1 . . Fabricators 1 | . . . . . . . . 1 . . . . . . . . Repair Stations 8 | . . . . . . . 1 2 3 2 . . . . . . Recycling Units 1 | . 1 . . . . . . . . . . . . . . . Scanalyzers . | . . . . . . . . . . . . . . . . . Garrison Access 7 | . . . . . 1 . 1 1 1 2 . . . . 1 . Total Hacks 93 | . 10 . 1 . 2 . 19 10 13 8 24 3 . 2 1 . Successful 53 | . 4 . 1 . 2 . 11 6 4 7 16 . . 1 1 . Failed 40 | . 6 . . . . . 8 4 9 1 8 3 . 1 . . Catastrophic 10 | . 2 . . . . . 1 1 1 . 3 2 . . . . Database Lockouts . | . . . . . . . . . . . . . . . . . Manual 38 | . 6 . 1 . . . 10 . 2 2 13 3 1 . . . Terminals 65 | . 8 . . . 1 . 17 3 5 2 24 3 . 2 . . Fabricators 2 | . . . . . . . . 2 . . . . . . . . Repair Stations 16 | . . . . . . . 1 4 7 4 . . . . . . Recycling Units 2 | . 2 . . . . . . . . . . . . . . . Scanalyzers . | . . . . . . . . . . . . . . . . . Garrison Access 7 | . . . . . 1 . 1 1 1 2 . . . . 1 . Terminal Hacks 25 | . 1 . 1 . 1 . 6 2 . . 13 . . 1 . . Prototype ID Bank 3 | . . . . . 1 . 1 . . . 1 . . . . . Open Door 4 | . . . . . . . . . . . 4 . . . . . Emergency Access Points 2 | . . . . . . . 2 . . . . . . . . . Alert Level 1 | . . . . . . . . . . . 1 . . . . . Unreport Threat 7 | . . . . . . . 2 . . . 5 . . . . . Locate Traps 4 | . 1 . . . . . . . . . 2 . . 1 . . Disarm Traps 2 | . . . . . . . . 2 . . . . . . . . Registered Components 1 | . . . . . . . 1 . . . . . . . . . EX-Prototype ID Bank 1 | . . . 1 . . . . . . . . . . . . . Fabricator Hacks 1 | . . . . . . . . 1 . . . . . . . . Build 1 | . . . . . . . . 1 . . . . . . . . Repair Station Hacks 10 | . . . . . . . 1 2 3 4 . . . . . . Scan Component 7 | . . . . . . . 1 2 2 2 . . . . . . Repair 3 | . . . . . . . . . 1 2 . . . . . . Recycling Unit Hacks 1 | . 1 . . . . . . . . . . . . . . . Retrieve Components 1 | . 1 . . . . . . . . . . . . . . . Scanalyzer . | . . . . . . . . . . . . . . . . . Garrison Access Hacks 7 | . . . . . 1 . 1 1 1 2 . . . . 1 . Unlock Access 2 | . . . . . 1 . . . . . . . . . 1 . Seal Access 5 | . . . . . . . 1 1 1 2 . . . . . . Unauthorized Hacks 9 | . 2 . . . . . 3 . . 1 3 . . . . . Terminals 9 | . 2 . . . . . 3 . . 1 3 . . . . . Botnet 9 | . 2 . . . . . 3 . . 1 3 . . . . . Fabricators . | . . . . . . . . . . . . . . . . . Repair Stations . | . . . . . . . . . . . . . . . . . Recycling Units . | . . . . . . . . . . . . . . . . . Scanalyzers . | . . . . . . . . . . . . . . . . . Garrison Access . | . . . . . . . . . . . . . . . . . Data Cores Recovered . | . . . . . . . . . . . . . . . . . Used . | . . . . . . . . . . . . . . . . . Hacking Detections 29 | . 4 . . . 1 . 4 3 7 1 6 2 . 1 . . Full Trace Events . | . . . . . . . . . . . . . . . . . Feedback Events . | . . . . . . . . . . . . . . . . . Feedback Blocked . | . . . . . . . . . . . . . . . . . Robot Schematics Acquired . | . . . . . . . . . . . . . . . . . Robots Built . | . . . . . . . . . . . . . . . . . Authchips . | . . . . . . . . . . . . . . . . . Time . | . . . . . . . . . . . . . . . . . Total Robot Build Rating . | . . . . . . . . . . . . . . . . . Part Schematics Acquired . | . . . . . . . . . . . . . . . . . Parts Built 2 | . . . . . . . . 2 . . . . . . . . Authchips . | . . . . . . . . . . . . . . . . . Time 84 | . . . . . . . . 84 . . . . . . . . Total Part Build Rating 8 | . . . . . . . . 8 . . . . . . . . Parts Repaired 3 | . . . . . . . . . 1 2 . . . . . . Time 119 | . . . . . . . . . 44 75 . . . . . . Parts Recycled . | . . . . . . . . . . . . . . . . . Recycled Matter . | . . . . . . . . . . . . . . . . . Retrieved Matter . | . . . . . . . . . . . . . . . . . Retrieved Components 9 | . 9 . . . . . . . . . . . . . . . Parts Scanalyzed . | . . . . . . . . . . . . . . . . . Part Schematics Acquired . | . . . . . . . . . . . . . . . . . Parts Damaged . | . . . . . . . . . . . . . . . . . Bothacking | -11 -10 -10 -10 -9 -8 -8 -8 -7 -6 -5 -5 -5 -5 -5 -4 -4 ------------ Run | Scr Mat Min Exi Min Mat Gar Mat Fac Fac Fac Ext Cet Arc Hub Fac Gar Used RIF Installer 1 | . . . . . . 1 . . . . . . . . . . Robots Hacked . | . . . . . . . . . . . . . . . . . Non-combat . | . . . . . . . . . . . . . . . . . Combat . | . . . . . . . . . . . . . . . . . Robot Hacks Applied . | . . . . . . . . . . . . . . . . . Relay Couplers Released 8 | . . . . . . 4 . 4 . . . . . . . . Machine Destruction 4 | . . . . . . 4 . . . . . . . . . . Programmers 4 | . . . . . . . . 4 . . . . . . . . Fabnet Peak Effective % . | . . . . . . . . . . . . . . . . . Robots Rewired 16 | . . . . . . . . 1 . . 15 . . . . . Allies Hacked 2 | . . . . . . . . 2 . . . . . . . . Hacks Repelled . | . . . . . . . . . . . . . . . . . Allies | -11 -10 -10 -10 -9 -8 -8 -8 -7 -6 -5 -5 -5 -5 -5 -4 -4 -------- Run | Scr Mat Min Exi Min Mat Gar Mat Fac Fac Fac Ext Cet Arc Hub Fac Gar Total Allies 33 | . . 1 . 3 . 2 . 1 . 3 22 1 . . . . Largest Group 10 | . . 1 . 3 3 2 2 1 . 1 10 4 2 . . . Highest-Rated Group 341 | . . 31 . 40 40 32 32 16 . 85 341 255 255 . . . Highest-Rated Ally 159 | . . 31 . 16 16 16 16 16 . 85 159 159 159 . . . Total Orders . | . . . . . . . . . . . . . . . . . Ally Attacks 264 | . . 5 . . 18 8 30 5 . 19 122 53 4 . . . Total Damage 7131 | . . 102 . . 200 102 429 59 . 981 3578 1538 142 . . . Kills 55 | . . 2 . . 1 2 4 . . 9 25 12 . . . . Allies Corrupted . | . . . . . . . . . . . . . . . . . Allies Melted . | . . . . . . . . . . . . . . . . . Field Lobotomies 5 | . . . . . . 2 . . . 3 . . . . . . Intel | -11 -10 -10 -10 -9 -8 -8 -8 -7 -6 -5 -5 -5 -5 -5 -4 -4 ------- Run | Scr Mat Min Exi Min Mat Gar Mat Fac Fac Fac Ext Cet Arc Hub Fac Gar Robot Analysis Total . | . . . . . . . . . . . . . . . . . Derelict Logs Recovered 2 | . . 1 . 1 . . . . . . . . . . . . Drone Launches . | . . . . . . . . . . . . . . . . . Drone Recoveries . | . . . . . . . . . . . . . . . . . Exploration | -11 -10 -10 -10 -9 -8 -8 -8 -7 -6 -5 -5 -5 -5 -5 -4 -4 ------------- Run | Scr Mat Min Exi Min Mat Gar Mat Fac Fac Fac Ext Cet Arc Hub Fac Gar Turns Passed 12667 | . 734 919 306 65 548 1009 935 1288 1195 1727 2300 565 310 98 127 541 Spaces Moved 6605 | 1 402 555 304 34 225 485 494 743 870 831 963 262 149 28 42 217 Core 95 | . . . . . . . . . . . . . . . . 95 Treads 1591 | . . 543 1 34 225 231 . . . 1 . 215 149 28 42 122 Legs 1732 | 1 88 . . . . 254 112 . . 267 963 47 . . . . Wheels 3187 | . 314 12 303 . . . 382 743 870 563 . . . . . . Hover . | . . . . . . . . . . . . . . . . . Flight . | . . . . . . . . . . . . . . . . . Fastest Speed 50 | 120 95 130 95 160 160 160 110 105 120 120 190 165 163 160 160 50 Average Speed 148 | 120 121 159 95 160 160 181 144 130 120 146 190 169 163 162 160 130 Slowest Speed 320 | 120 155 240 160 160 160 260 190 155 120 260 190 190 165 163 163 320 Overloaded Moves . | . . . . . . . . . . . . . . . . . Propulsion Burnouts . | . . . . . . . . . . . . . . . . . Robots Hopped . | . . . . . . . . . . . . . . . . . Cave-ins Triggered . | . . . . . . . . . . . . . . . . . Exploration Rate (%) 43 | 2 69 94 71 12 19 58 50 24 24 24 72 79 89 11 2 47 Regions Visited 16 Branch Regions 7 Pre-discovered Areas . | . . . . . . . . . . . . . . . . . Known Exits Taken 3 | . . . . . 1 . . . . 1 . . . . 1 . Unknown Exits Taken 12 | 1 1 1 1 1 . . 1 1 1 . 1 1 1 1 . . Scrap Searched 1 | . . 1 . . . . . . . . . . . . . . Spaces Dug 5 | . . . . . . . . . . 1 . . . 4 . . Terrain Destroyed 412 | . . . . . . 21 . . . 37 46 3 1 228 10 66 Melee 5 | . . . . . . . . . . 1 . . . 4 . . Projectile 83 | . . . . . . . . . . 36 17 3 1 13 10 3 AOE 324 | . . . . . . 21 . . . . 29 . . 211 . 63 Terrain Rammed . | . . . . . . . . . . . . . . . . . Walls Destroyed . | . . . . . . . . . . . . . . . . . Machines Disabled . | . . . . . . . . . . . . . . . . . Actions | -11 -10 -10 -10 -9 -8 -8 -8 -7 -6 -5 -5 -5 -5 -5 -4 -4 --------- Run | Scr Mat Min Exi Min Mat Gar Mat Fac Fac Fac Ext Cet Arc Hub Fac Gar Total 8755 | . 548 591 326 45 361 572 667 977 1000 1199 1362 351 191 53 70 442 Wait 809 | . 24 9 . 12 41 12 87 93 58 152 157 14 . . . 150 Move 6590 | . 401 554 303 33 225 484 493 742 869 830 962 261 148 27 41 217 Hop . | . . . . . . . . . . . . . . . . . Pick Up 197 | . 28 10 9 . 22 9 17 13 13 24 23 9 6 2 2 10 Fast Attach 103 | . 3 1 . . 6 5 7 9 9 29 16 8 7 . 1 2 Attach 140 | . 10 3 4 . 13 10 9 13 7 25 17 6 2 6 5 10 Detach 42 | . 4 . . . . 2 1 5 3 10 8 3 . 1 1 4 Swap 12 | . 1 . . . . 2 . 1 2 1 4 . 1 . . . Drop 253 | . 16 11 10 . 23 14 18 23 19 32 32 18 13 3 . 21 Fire 341 | . 41 1 . . 31 32 5 9 2 91 53 31 14 10 16 5 Melee 162 | . 20 . . . . . 30 58 18 3 4 1 . 4 3 21 Ram 1 | . . . . . . . . 1 . . . . . . . . Kick 3 | . . . . . . . . . . 1 2 . . . . . Crush 6 | . . 2 . . . 2 . . . 1 . . . . 1 . Escape Stasis 9 | . . . . . . . . . . . 7 . . . . 2 Rewire 87 | . . . . . . . . 10 . . 77 . . . . . Trap . | . . . . . . . . . . . . . . . . . Miscellaneous . | . . . . . . . . . . . . . . . . . Route ------- -11/Scrapyard -10/Materials (discovered 3 exits: [*Mat x2] / [*Min]) -10/Mines (discovered 2 exits: [*Mat] / *Exi) -10/Exiles -9/Mines -8/Materials -8/Garrison (discovered 3 exits: *Mat x3) -8/Materials -7/Factory -6/Factory -5/Factory -5/Extension (discovered 2 exits: *Fac / *Cet) -5/Cetus -5/Archives (discovered 3 exits: *Fac / *Hub x2) -5/Hub_04(d) -4/Factory -4/Garrison History --------- Turn | Location | Event 1 | -11/Scrapyard | Discovered new exit (range 0) 1 | -11/Scrapyard | Entered Materials 224 | -10/Materials | Discovered new exit (range 4) 252 | -10/Materials | Discovered new exit (range 15) 312 | -10/Materials | Build established: Mutant 420 | -10/Materials | Core integrity fell below 50% 583 | -10/Materials | Discovered new exit (range 8) 735 | -10/Materials | Entered Mines 736 | -10/Mines | Assembled infested the area 741 | -10/Mines | Assisted by a Guerilla fighting off Assembled 741 | -10/Mines | Joined a pair of Derelicts in attacking an 0b10 outpost 829 | -10/Mines | YI-UF0 nonchalantly dropped a Grenade Launcher on the ground 1178 | -10/Mines | Discovered new exit (range 5) 1224 | -10/Mines | Received a Mining Laser from a helpful Derelict 1559 | -10/Mines | Learned 2 Materials zone layouts 1590 | -10/Mines | Found a damaged Exp. Sensor Array with a note attached 1600 | -10/Mines | Found Prototype Device 1648 | -10/Mines | Deemed a non-threat by the Exiles lab entrance 1648 | -10/Mines | Discovered new exit (range 5) 1654 | -10/Mines | Entered Exiles 1682 | -10/Exiles | Met 8R-AWN 1699 | -10/Exiles | Met EX-HEX 1724 | -10/Exiles | Met EX-BIN 1739 | -10/Exiles | Aligned with FarCom system 1740 | -10/Exiles | Given EX-Vault access code 1762 | -10/Exiles | Opened EX-Vault 1771 | -10/Exiles | Found 0b10 Alert Chip 1777 | -10/Exiles | Found YOLO Cannon 1779 | -10/Exiles | Found Field Lobotomy Kit 1799 | -10/Exiles | Warned to stay clear of 0b10 Research branches 1876 | -10/Exiles | Met EX-DEC 1947 | -10/Exiles | Discovered new exit (range 10) 1960 | -10/Exiles | Stole three prototypes: 0b10 Alert Chip, YOLO Cannon, Field Lobotomy Kit 1960 | -10/Exiles | Entered Mines 1965 | -9/Mines | Assisted by bots powering up and referring to "LRC-V3" 2003 | -9/Mines | Learned location of 1 exit from Proximity Caves 2003 | -9/Mines | Discovered new exit (range 12) 2025 | -9/Mines | Entered Materials 2025 | -8/Materials | Accompanied by 3 allies 2025 | -8/Materials | Evolved 4 slots: Propulsion x2, Utility x2 2130 | -8/Materials | Garrison activated, responded to threat 2347 | -8/Materials | Build established: Scavenger-Mutant 2573 | -8/Materials | Identified exit to Garrison 2573 | -8/Materials | Entered Garrison 2664 | -8/Garrison | Triggered checkpoint 2777 | -8/Garrison | Garrison Relay disabled 2956 | -8/Garrison | Triggered checkpoint 2957 | -8/Garrison | Triggered checkpoint 2988 | -8/Garrison | Destroyed 7 combat bots 2996 | -8/Garrison | Triggered checkpoint 3014 | -8/Garrison | Triggered checkpoint 3018 | -8/Garrison | Assimilated G-47 Trooper with FLK Orb 3021 | -8/Garrison | Assimilated G-47 Trooper with FLK Orb 3205 | -8/Garrison | Discovered new exit (range 10) 3341 | -8/Garrison | Discovered new exit (range 11) 3542 | -8/Garrison | Discovered new exit (range 12) 3574 | -8/Garrison | Installed Relay Interface Framework 3582 | -8/Garrison | Entered Materials 3582 | -8/Materials | Accompanied by 2 allies 4091 | -8/Materials | Garrison activated, responded to threat 4218 | -8/Materials | Build established: Mutant 4362 | -8/Materials | Discovered new exit (range 16) 4517 | -8/Materials | Entered Factory 4517 | -7/Factory | Evolved 2 slots: Utility x2 4519 | -7/Factory | FarCom data flow suspended 5539 | -7/Factory | Build established: Scavenger-Mutant 5546 | -7/Factory | Discovered new exit (range 16) 5758 | -7/Factory | Fabricated Xenon Bombardment Thruster (x2) 5805 | -7/Factory | System corruption reached 10% 5805 | -7/Factory | Entered another Factory area 5805 | -6/Factory | Evolved 2 slots: Utility x1, Weapon x1 6658 | -6/Factory | System corruption reached 10% 6727 | -6/Factory | Repaired Hrd. Heavy Armor Plating 6753 | -6/Factory | Discovered new exit (range 16) 6987 | -6/Factory | Build established: Mutant 7000 | -6/Factory | Entered another Factory area 7000 | -5/Factory | Evolved 2 slots: Utility x1, Weapon x1 7074 | -5/Factory | Spotted B-75 Beast 7076 | -5/Factory | Assimilated B-75 Beast with FLK Orb 7239 | -5/Factory | Identified Exp. Sensor Array 7630 | -5/Factory | Found Prototype Launcher 7630 | -5/Factory | Identified Mni. Smartbomb Launcher 7814 | -5/Factory | Cargo convoy interrupted 7874 | -5/Factory | Assimilated H-66 Slayer with FLK Orb 7889 | -5/Factory | Assimilated H-66 Slayer with FLK Orb 7900 | -5/Factory | Build established: Gunner 7995 | -5/Factory | Destroyed 8 combat bots 8064 | -5/Factory | Lost 12 parts (1p4n3u4w) 8350 | -5/Factory | Build established: Scavenger-Gunner 8441 | -5/Factory | Repaired Arm. Leg 8646 | -5/Factory | Repaired Arm. Leg 8699 | -5/Factory | Discovered new exit (range 15) 8725 | -5/Factory | Identified exit to Extension 8727 | -5/Factory | Entered Extension 8816 | -5/Extension | Rescued a captive Derelict 8816 | -5/Extension | Rescued a captive Derelict 9353 | -5/Extension | Rescued a captive Derelict 9451 | -5/Extension | Spotted B-75 Beast 9476 | -5/Extension | Spotted B-75 Beast 9499 | -5/Extension | Core integrity fell below 50% 9519 | -5/Extension | Destroyed B-75 Beast 9527 | -5/Extension | Disrupted transfer network 9531 | -5/Extension | Destroyed B-75 Beast 9561 | -5/Extension | Lost 8 parts (2n1u5w) 9793 | -5/Extension | Build established: Scavenger-Mutant 9961 | -5/Extension | Lost 3 parts (1p2w) 10113 | -5/Extension | Rescued a captive Derelict 10113 | -5/Extension | Rescued a captive Derelict 10311 | -5/Extension | Rescued A7 10343 | -5/Extension | Rescued a captive Derelict 10681 | -5/Extension | Energy Cycler disabled 10772 | -5/Extension | Discovered new exit (range 10) 10774 | -5/Extension | Discovered new exit (range 6) 11027 | -5/Extension | Entered Cetus 11027 | -5/Cetus | Accompanied by 4 allies (A7) 11032 | -5/Cetus | Acquired a Cetus Manufacturing Module code from A7 11057 | -5/Cetus | Spotted Cetus Guard 11057 | -5/Cetus | Spotted Cetus Guard 11062 | -5/Cetus | Spotted Cetus Guard 11068 | -5/Cetus | Spotted Cetus Guard 11072 | -5/Cetus | Allies destroyed Cetus Guard 11083 | -5/Cetus | Allies destroyed Cetus Guard 11084 | -5/Cetus | Allies destroyed Cetus Guard 11093 | -5/Cetus | Allies destroyed Cetus Guard 11164 | -5/Cetus | System corruption reached 10% 11261 | -5/Cetus | Started Cetus Manufacturing Module 11286 | -5/Cetus | Manufactured an Enhanced Grunt 11298 | -5/Cetus | Cetus Manufacturing Module disabled 11361 | -5/Cetus | Escorted A7 to Cetus Mainframe 11554 | -5/Cetus | Discovered new exit (range 16) 11592 | -5/Cetus | Entered Archives 11592 | -5/Archives | Accompanied by 2 allies (A7) 11597 | -5/Archives | Received a hacking code to weaken MAIN.C 11729 | -5/Archives | Discovered new exit (range 15) 11759 | -5/Archives | Build established: Scavenger-Gunner 11803 | -5/Archives | Discovered new exit (range 15) 11815 | -5/Archives | Unable to access archive contents 11880 | -5/Archives | Discovered new exit (range 13) 11902 | -5/Archives | Entered Hub_04(d) 11952 | -5/Hub_04(d) | Discovered new exit (range 9) 11969 | -5/Hub_04(d) | Core integrity fell below 20% 11983 | -5/Hub_04(d) | Network Hub disabled 12000 | -5/Hub_04(d) | Entered Factory 12000 | -4/Factory | Evolved 2 slots: Power x1, Utility x1 12021 | -4/Factory | Lost 4 parts (1u3w) 12070 | -4/Factory | Garrison activated, responded to threat 12122 | -4/Factory | Identified exit to Garrison 12127 | -4/Factory | Entered Garrison 12155 | -4/Garrison | Lost 9 parts (1p1n4u3w) 12287 | -4/Garrison | Build established: Scavenger-Mutant 12499 | -4/Garrison | Lost 3 parts (1p2n) 12623 | -4/Garrison | Spotted B-86 Titan 12625 | -4/Garrison | Triggered checkpoint 12625 | -4/Garrison | Triggered checkpoint 12629 | -4/Garrison | Core integrity fell below 50% 12645 | -4/Garrison | Core integrity fell below 20% 12648 | -4/Garrison | Triggered checkpoint 12663 | -4/Garrison | Lost 3 parts (1n2u) 12668 | -4/Garrison | Destroyed by S-27 Virus with Autogun Last Messages --------------- 12632_ Penetrated by Slug. 12634_ System corrupted: Matter fused (-10). 12634_ Acquired 1 matter. 12642_ S-27 Virus destroyed. 12642_ VTOL Module melted. 12642_ S-27 Virus destroyed. 12642_ VTOL Module melted. 12642_ S-27 Virus destroyed. 12646_ Destroyed VTOL Module. 12648_ Beams of light sweep through the air. An alarm sounds. 12650_ G-67 Veteran destroyed. 12650_ S-27 Virus destroyed. 12655_ Penetrated by Slug. 12657_ Slug penetrates Wall. 12664_ Penetrated by Slug. 12664_ Adv. Hacking Suite destroyed. 12666_ G-67 Veteran destroyed. 12666_ S-27 Virus destroyed. 12666_ Destroyed VTOL Module. 12667_ Penetrated by Slug. Map ----- +----------------------------------------------------+ | ?????????????????????????????????# #?????## ## | | ?????????????????????????????????# ####### | | ?????????????????????????######### | | ?????????????????? | | ?????????????????????????################## ## | | ????????????????????????????????????????### "" | | ????????????????????????????????????????# | | ????????????????????????????????????????# % | | ????????????????????????????????????????#"% | | ????????????????????????????????????????#%=%= | | ????????????????????????????????????????### ## | | ????????????????????????????????????#?????# #" | | ??????????????????????????????????? ?????# [ | | ??????????????????????????????????? ?????# %= | | ??????????????????????????????????? #?????# | | ??????????????????????????????????? #?????# ## | | ??????????????????????????????????? #?????# #? | | ?????????????????????????????????? ##????# #? | | ?????????????????????????????????? ?????# #? | | ????????????????????????????###??? #?????# #? | | ??????????????????????????? ##?? #???? " #? | | ?????????????????????????? #?? #?? !%!" | | ??????????################;; ;;###h/##" [ [ " | | ??????????# [h [%= | | ??????????# %% " | | ??????????# @ =s " | | ???????????????###########; ;# ##"" % "#? | | ?????????????????????????????? ; #??????????? | | ?????????????????????????????????# ?????????? | | ?????????????????????????????????# #????????? | | ?????????????????????????????????# #????????? | | ?????????????????????????????????# ###????????? | | ?????????????????????????????????# #??????????? | | ?????????????????????????????????# #??????????? | | ?????????????????????????????????# #??????????? | | ?????????????????????????????????# #??????????? | | ?????????????????????????????????# ??????????? | | ?????????????????????????????????# ??????????? | | ?????????????????????????????????? ??????????? | | ?????????????????????????????????? #??????????? | | ?????????????????????????????????? ???????????? | | ???????????????????????????????????????????????? | | ???????????????????????????????????????????????? | | ???????????????????????????????????????????????? | | ???????????????????????????????????????????????? | | ???????????????????????????????????????????????? | | ???????????????????????????????????????????????? | | ???????????????????????????????????????????????? | | ???????????????????????????????????????????????? | | ???????????????????????????????????????????????? | +----------------------------------------------------+ Best States ------------- Heat Dissipation 78 Coolant Potential 80 Energy Generation 23 Energy Capacity 450 Matter Stores 300 Matter Capacity 300 Sight Range 16 Robot Scan Range 20 Terrain Scan Density 10 Additional Mass Support 9 Corruption Containment 8 Armor Coverage 600 Resistance: TH 10 Core Shielding 20 Weapon Shielding 33 Weapon Cycling 20 Melee Speed Boost 40 Evasion (%) 55 Targeting Accuracy 11 Melee Accuracy 14 Target Analysis 9 Recoil Reduction 4 Kinecelleration 40 Offensive Hacking 14 Item Schematics ----------------- None Robot Schematics ------------------ None Fabricated ------------ Xenon Bombardment Thruster | x2 | -7/Factory | Preloaded Alien Tech Used ----------------- None Achievements -------------- Main Advantage Project G-00 Challenges ------------ None Game ------ Seed BattleSchematicCapacitor Manual? 0 Play Time 03:32:51 Cumulative 134.4 hours Start 2022.06.28 @ 08:17:35 End 2022.07.02 @ 11:37:01 Sessions 13 Manual Loads 0 Difficulty Rogue Special Mode None Game No. 63 Rogue 63 Adventurer 0 Explorer 0 Win Type - Total 1 Types 1/0/0/0/0/0/0/0/0 Lore% 31 Gallery% 57 Achievement% 42 Wizard Run 0 Options --------- ASCII 0 Keyboard 0 Movement Numpad Keybinds 0 Fullscreen 1 Font 18/Terminus Map View 76x50 Tactical HUD 1 Map Filters NONE Filters NONE Steam 1 RUN: 92f55aad-1f9a-4d7b-891e-f0f2e4c57d2c